[Event "Late-Titled-Tuesday-Blitz-April-23-2024"]
[Site "Chess.com"]
[Date "2024.04.23"]
[Round "2"]
[White "manmanlai1"]
[Black "Iuckyducky"]
[Result "1-0"]
[WhiteElo "2515"]
[BlackElo "2264"]
[TimeControl "180+1"]
[EndTime "14:13:15 PDT"]
[Termination "manmanlai1 won by resignation"]

1. e4 {[%clk 0:02:59.3]} 1... e5 {[%clk 0:02:57.6]} 2. Nf3 {[%clk 0:02:58.8]}
2... d6 {[%clk 0:02:58.1]} 3. d4 {[%clk 0:02:57.1]} 3... exd4 {[%clk 0:02:53.7]}
4. Nxd4 {[%clk 0:02:58]} 4... Nf6 {[%clk 0:02:54.1]} 5. Nc3 {[%clk 0:02:57.2]}
5... g6 {[%clk 0:02:54.3]} 6. Be3 {[%clk 0:02:56.1]} 6... Bg7 {[%clk 0:02:54.7]}
7. Qd2 {[%clk 0:02:55.7]} 7... Nc6 {[%clk 0:02:51.1]} 8. f3 {[%clk 0:02:54.4]}
8... Be6 {[%clk 0:02:48.3]} 9. O-O-O {[%clk 0:02:53.8]} 9... O-O {[%clk
0:02:43.4]} 10. h4 {[%clk 0:02:53.8]} 10... Ne5 {[%clk 0:02:37.5]} 11. Bh6
{[%clk 0:02:49.6]} 11... Bc4 {[%clk 0:02:14.5]} 12. Bxg7 {[%clk 0:02:39]} 12...
Kxg7 {[%clk 0:02:13.3]} 13. f4 {[%clk 0:02:21.7]} 13... Bxf1 {[%clk 0:02:12.2]}
14. fxe5 {[%clk 0:02:21.1]} 14... dxe5 {[%clk 0:02:12]} 15. Nf5+ {[%clk
0:02:20.8]} 15... gxf5 {[%clk 0:02:11.6]} 16. Qg5+ {[%clk 0:02:20.7]} 16... Kh8
{[%clk 0:02:12.2]} 17. Rxd8 {[%clk 0:02:20.7]} 1-0

[Event "Late-Titled-Tuesday-Blitz-April-23-2024"]
[Site "Chess.com"]
[Date "2024.04.23"]
[Round "2"]
[White "sergoy"]
[Black "djano"]
[Result "1-0"]
[WhiteElo "2938"]
[BlackElo "2627"]
[TimeControl "180+1"]
[EndTime "14:13:46 PDT"]
[Termination "sergoy won by checkmate"]

1. d4 {[%clk 0:03:00.9]} 1... d5 {[%clk 0:02:58.3]} 2. c4 {[%clk 0:03:01.2]}
2... e6 {[%clk 0:02:58.7]} 3. Nf3 {[%clk 0:03:01.9]} 3... c5 {[%clk 0:02:59.1]}
4. e3 {[%clk 0:02:57.5]} 4... Nf6 {[%clk 0:02:58.4]} 5. Nc3 {[%clk 0:02:57.3]}
5... a6 {[%clk 0:02:58.4]} 6. cxd5 {[%clk 0:02:55.6]} 6... exd5 {[%clk
0:02:57.6]} 7. Be2 {[%clk 0:02:54.2]} 7... Nc6 {[%clk 0:02:57]} 8. O-O {[%clk
0:02:54.2]} 8... Bd6 {[%clk 0:02:50.7]} 9. dxc5 {[%clk 0:02:54.1]} 9... Bxc5
{[%clk 0:02:51.6]} 10. b3 {[%clk 0:02:54.3]} 10... O-O {[%clk 0:02:51.5]} 11.
Bb2 {[%clk 0:02:54.6]} 11... Be6 {[%clk 0:02:39.7]} 12. Rc1 {[%clk 0:02:54.3]}
12... Qe7 {[%clk 0:02:39.4]} 13. Na4 {[%clk 0:02:53.7]} 13... Bd6 {[%clk
0:02:36]} 14. Nd4 {[%clk 0:02:49.7]} 14... Nxd4 {[%clk 0:02:30.9]} 15. Qxd4
{[%clk 0:02:47.8]} 15... Rad8 {[%clk 0:02:11.7]} 16. Bf3 {[%clk 0:02:45.1]}
16... Ne8 {[%clk 0:01:40.8]} 17. Nb6 {[%clk 0:02:32.4]} 17... Nc7 {[%clk
0:01:33.3]} 18. Qxg7# {[%clk 0:02:31.7]} 1-0

[Event "Late-Titled-Tuesday-Blitz-April-23-2024"]
[Site "Chess.com"]
[Date "2024.04.23"]
[Round "2"]
[White "JG-17"]
[Black "crosky"]
[Result "1-0"]
[WhiteElo "2544"]
[BlackElo "2355"]
[TimeControl "180+1"]
[EndTime "14:14:09 PDT"]
[Termination "JG-17 won by resignation"]

1. d4 {[%clk 0:03:00.9]} 1... Nf6 {[%clk 0:02:59]} 2. Bf4 {[%clk 0:03:00.4]}
2... c5 {[%clk 0:02:58.8]} 3. e3 {[%clk 0:03:00.4]} 3... Qb6 {[%clk 0:02:59.4]}
4. b3 {[%clk 0:02:50.8]} 4... g6 {[%clk 0:02:58]} 5. Nf3 {[%clk 0:02:50.1]} 5...
Bg7 {[%clk 0:02:58.2]} 6. Nbd2 {[%clk 0:02:43.1]} 6... d6 {[%clk 0:02:56.4]} 7.
dxc5 {[%clk 0:02:41.6]} 7... Qxc5 {[%clk 0:02:56.4]} 8. Rc1 {[%clk 0:02:35.9]}
8... O-O {[%clk 0:02:54.4]} 9. c4 {[%clk 0:02:35.4]} 9... Bf5 {[%clk 0:02:32.8]}
10. Nd4 {[%clk 0:02:33.1]} 10... Ne4 {[%clk 0:02:22.3]} 11. Nxf5 {[%clk
0:02:31.6]} 11... gxf5 {[%clk 0:02:23.2]} 12. Bd3 {[%clk 0:02:28.4]} 12... e5
{[%clk 0:02:01.3]} 13. Bxe4 {[%clk 0:02:21.9]} 13... exf4 {[%clk 0:01:52.9]} 14.
Bxb7 {[%clk 0:02:17.6]} 14... fxe3 {[%clk 0:01:53.3]} 15. fxe3 {[%clk
0:02:06.7]} 15... Nc6 {[%clk 0:01:44.1]} 16. Bxa8 {[%clk 0:02:05.6]} 16... Rxa8
{[%clk 0:01:42.2]} 17. Qf3 {[%clk 0:02:02.7]} 17... Ne5 {[%clk 0:01:40.2]} 18.
Qxa8+ {[%clk 0:02:01.7]} 1-0

[Event "Late-Titled-Tuesday-Blitz-April-23-2024"]
[Site "Chess.com"]
[Date "2024.04.23"]
[Round "2"]
[White "Byniolus"]
[Black "whiteglovethief"]
[Result "1-0"]
[WhiteElo "2803"]
[BlackElo "2562"]
[TimeControl "180+1"]
[EndTime "14:14:16 PDT"]
[Termination "Byniolus won by resignation"]

1. d4 {[%clk 0:03:00.9]} 1... Nf6 {[%clk 0:02:59.6]} 2. Nf3 {[%clk 0:03:01.1]}
2... g6 {[%clk 0:02:58.9]} 3. Bf4 {[%clk 0:03:01.3]} 3... Bg7 {[%clk 0:02:58.1]}
4. e3 {[%clk 0:03:01.8]} 4... d5 {[%clk 0:02:58.2]} 5. c3 {[%clk 0:03:01.1]}
5... O-O {[%clk 0:02:58.7]} 6. Be2 {[%clk 0:03:00.3]} 6... b6 {[%clk 0:02:59.1]}
7. O-O {[%clk 0:03:00.4]} 7... Bb7 {[%clk 0:02:59.5]} 8. a4 {[%clk 0:02:59.5]}
8... Nbd7 {[%clk 0:02:56.2]} 9. a5 {[%clk 0:02:58.9]} 9... c5 {[%clk 0:02:48]}
10. h3 {[%clk 0:02:56.7]} 10... Rc8 {[%clk 0:02:45.3]} 11. Nbd2 {[%clk
0:02:53.9]} 11... Ne4 {[%clk 0:02:44.5]} 12. axb6 {[%clk 0:02:45]} 12... Nxd2
{[%clk 0:02:37.7]} 13. Qxd2 {[%clk 0:02:32.6]} 13... Qxb6 {[%clk 0:02:33]} 14.
Ra2 {[%clk 0:02:26.7]} 14... cxd4 {[%clk 0:02:29.4]} 15. exd4 {[%clk 0:02:19.9]}
15... Ra8 {[%clk 0:02:22.6]} 16. Rfa1 {[%clk 0:02:14.7]} 16... a5 {[%clk
0:02:22.4]} 17. Bd3 {[%clk 0:02:01.9]} 17... e6 {[%clk 0:02:19.4]} 18. Qe2
{[%clk 0:01:57.2]} 18... Bc6 {[%clk 0:02:17.8]} 19. Ne1 {[%clk 0:01:41.9]} 19...
Rab8 {[%clk 0:01:59.6]} 20. Bxb8 {[%clk 0:01:41.1]} 1-0

[Event "Late-Titled-Tuesday-Blitz-April-23-2024"]
[Site "Chess.com"]
[Date "2024.04.23"]
[Round "2"]
[White "FM_Kappeler"]
[Black "ElDivis"]
[Result "1-0"]
[WhiteElo "2275"]
[BlackElo "2489"]
[TimeControl "180+1"]
[EndTime "14:14:29 PDT"]
[Termination "FM_Kappeler won by resignation"]

1. d4 {[%clk 0:03:00.9]} 1... Nf6 {[%clk 0:02:59.9]} 2. c4 {[%clk 0:03:00.6]}
2... e6 {[%clk 0:02:58.5]} 3. g3 {[%clk 0:02:59.8]} 3... d5 {[%clk 0:02:58.3]}
4. Bg2 {[%clk 0:02:59.9]} 4... Be7 {[%clk 0:02:57.8]} 5. Nf3 {[%clk 0:02:59.8]}
5... O-O {[%clk 0:02:58.1]} 6. O-O {[%clk 0:02:59.7]} 6... a5 {[%clk 0:02:55.4]}
7. Qc2 {[%clk 0:02:58.4]} 7... a4 {[%clk 0:02:54]} 8. Nbd2 {[%clk 0:02:57.7]}
8... c6 {[%clk 0:02:53.1]} 9. e4 {[%clk 0:02:56.6]} 9... dxe4 {[%clk 0:02:50.3]}
10. Nxe4 {[%clk 0:02:56.3]} 10... Nxe4 {[%clk 0:02:51.2]} 11. Qxe4 {[%clk
0:02:56.1]} 11... Nd7 {[%clk 0:02:49.7]} 12. Bf4 {[%clk 0:02:50.6]} 12... Nf6
{[%clk 0:02:49.6]} 13. Qe2 {[%clk 0:02:49.6]} 13... a3 {[%clk 0:02:46]} 14. b3
{[%clk 0:02:48.7]} 14... b5 {[%clk 0:02:43]} 15. Ne5 {[%clk 0:02:39.8]} 15...
Bb7 {[%clk 0:02:40.9]} 16. Nxc6 {[%clk 0:02:35.7]} 16... Bxc6 {[%clk 0:02:41.1]}
17. Bxc6 {[%clk 0:02:35.4]} 17... bxc4 {[%clk 0:02:41.1]} 18. Bxa8 {[%clk
0:02:30]} 18... Qxa8 {[%clk 0:02:39]} 19. bxc4 {[%clk 0:02:27.7]} 19... Rd8
{[%clk 0:02:37.9]} 20. Rfd1 {[%clk 0:02:25.3]} 20... Ne4 {[%clk 0:02:37.3]} 21.
Rac1 {[%clk 0:02:20.8]} 21... Bg5 {[%clk 0:02:31]} 22. Qe3 {[%clk 0:02:11.4]}
22... Bxf4 {[%clk 0:02:27.9]} 23. Qxf4 {[%clk 0:02:09.4]} 23... Nf6 {[%clk
0:02:27.7]} 24. h3 {[%clk 0:02:03.7]} 24... Qc6 {[%clk 0:02:19.9]} 25. d5 {[%clk
0:01:51.3]} 25... Qe8 {[%clk 0:02:15.9]} 26. dxe6 {[%clk 0:01:44.1]} 26... fxe6
{[%clk 0:02:14.3]} 27. Rxd8 {[%clk 0:01:41.3]} 27... Qxd8 {[%clk 0:02:15.2]} 28.
Qe5 {[%clk 0:01:33.8]} 1-0

[Event "Late-Titled-Tuesday-Blitz-April-23-2024"]
[Site "Chess.com"]
[Date "2024.04.23"]
[Round "2"]
[White "Smiechu"]
[Black "PNEPaul"]
[Result "1-0"]
[WhiteElo "2444"]
[BlackElo "1914"]
[TimeControl "180+1"]
[EndTime "14:14:30 PDT"]
[Termination "Smiechu won by resignation"]

1. e4 {[%clk 0:03:00.9]} 1... e5 {[%clk 0:02:26]} 2. Nf3 {[%clk 0:02:55.8]} 2...
Nc6 {[%clk 0:02:25.6]} 3. d4 {[%clk 0:02:56]} 3... exd4 {[%clk 0:02:24.8]} 4.
Nxd4 {[%clk 0:02:56.9]} 4... Be7 {[%clk 0:02:25]} 5. c4 {[%clk 0:02:39.6]} 5...
d6 {[%clk 0:02:23.9]} 6. Nc3 {[%clk 0:02:39.1]} 6... Nf6 {[%clk 0:02:23.5]} 7.
Be3 {[%clk 0:02:39.1]} 7... O-O {[%clk 0:02:23]} 8. Be2 {[%clk 0:02:39.1]} 8...
Ne5 {[%clk 0:02:11.7]} 9. h3 {[%clk 0:02:38.2]} 9... c5 {[%clk 0:02:11.1]} 10.
Nf3 {[%clk 0:02:33.7]} 10... Nxf3+ {[%clk 0:02:10.9]} 11. Bxf3 {[%clk
0:02:33.9]} 11... Be6 {[%clk 0:02:10.6]} 12. Be2 {[%clk 0:02:28.5]} 12... Qa5
{[%clk 0:02:07.5]} 13. O-O {[%clk 0:02:27.7]} 13... h6 {[%clk 0:02:04.7]} 14.
Qd2 {[%clk 0:02:12.2]} 14... Kh7 {[%clk 0:02:02.8]} 15. Bd3 {[%clk 0:01:57.9]}
15... Ng8 {[%clk 0:01:44]} 16. f4 {[%clk 0:01:51]} 16... Bf6 {[%clk 0:01:35.4]}
17. e5+ {[%clk 0:01:50.1]} 1-0

[Event "Late-Titled-Tuesday-Blitz-April-23-2024"]
[Site "Chess.com"]
[Date "2024.04.23"]
[Round "2"]
[White "Sargsyan_Shant"]
[Black "ELPRIMO0O0"]
[Result "1-0"]
[WhiteElo "2975"]
[BlackElo "2637"]
[TimeControl "180+1"]
[EndTime "14:14:32 PDT"]
[Termination "Sargsyan_Shant won by resignation"]

1. c4 {[%clk 0:02:59.6]} 1... Nf6 {[%clk 0:02:59.6]} 2. g3 {[%clk 0:02:59.9]}
2... g6 {[%clk 0:02:59.1]} 3. Bg2 {[%clk 0:03:00.4]} 3... Bg7 {[%clk 0:03:00]}
4. Nc3 {[%clk 0:03:00.6]} 4... O-O {[%clk 0:03:00.2]} 5. d3 {[%clk 0:03:01]}
5... d6 {[%clk 0:02:55.5]} 6. Rb1 {[%clk 0:03:00.5]} 6... e5 {[%clk 0:02:55.1]}
7. Nf3 {[%clk 0:03:00]} 7... Nc6 {[%clk 0:02:55.2]} 8. O-O {[%clk 0:03:00.1]}
8... Bg4 {[%clk 0:02:44.2]} 9. b4 {[%clk 0:02:59.7]} 9... Qd7 {[%clk 0:02:41.1]}
10. b5 {[%clk 0:02:59.6]} 10... Ne7 {[%clk 0:02:39.1]} 11. Bg5 {[%clk
0:02:59.6]} 11... h6 {[%clk 0:02:29.1]} 12. Bxf6 {[%clk 0:02:59.9]} 12... Bxf6
{[%clk 0:02:30]} 13. Nd2 {[%clk 0:03:00.8]} 13... c6 {[%clk 0:02:16.7]} 14. Qb3
{[%clk 0:02:54.4]} 14... Bg7 {[%clk 0:01:56.2]} 15. bxc6 {[%clk 0:02:54.4]}
15... bxc6 {[%clk 0:01:56.4]} 16. Qb7 {[%clk 0:02:54.7]} 16... Qe6 {[%clk
0:01:54.7]} 17. Bxc6 {[%clk 0:02:45.6]} 17... Nxc6 {[%clk 0:01:54.7]} 18. Qxc6
{[%clk 0:02:46.5]} 18... Bh3 {[%clk 0:01:55.2]} 19. Rfc1 {[%clk 0:02:44.9]}
19... h5 {[%clk 0:01:52.4]} 20. Nf3 {[%clk 0:02:43.3]} 20... Bh6 {[%clk
0:01:45.8]} 21. Rd1 {[%clk 0:02:41.3]} 21... Rac8 {[%clk 0:01:41.3]} 22. Qd5
{[%clk 0:02:41.2]} 22... Qf5 {[%clk 0:01:38.2]} 23. Qxd6 {[%clk 0:02:37.7]}
23... Rfe8 {[%clk 0:01:32.6]} 24. Ne4 {[%clk 0:02:36.4]} 24... Rcd8 {[%clk
0:01:30.3]} 25. Nf6+ {[%clk 0:02:32.8]} 25... Kh8 {[%clk 0:01:28.2]} 26. Nxe8
{[%clk 0:02:32.2]} 26... Rxd6 {[%clk 0:01:28.5]} 27. Nxd6 {[%clk 0:02:33.1]}
27... Qe6 {[%clk 0:01:26.2]} 28. Nxe5 {[%clk 0:02:30.7]} 1-0

[Event "Late-Titled-Tuesday-Blitz-April-23-2024"]
[Site "Chess.com"]
[Date "2024.04.23"]
[Round "2"]
[White "SharathRk6"]
[Black "olakenn"]
[Result "1-0"]
[WhiteElo "2442"]
[BlackElo "1909"]
[TimeControl "180+1"]
[EndTime "14:14:55 PDT"]
[Termination "SharathRk6 won by checkmate"]

1. e4 {[%clk 0:03:00.9]} 1... c6 {[%clk 0:02:53.7]} 2. d4 {[%clk 0:03:00.4]}
2... d5 {[%clk 0:02:53.4]} 3. Nc3 {[%clk 0:03:01]} 3... dxe4 {[%clk 0:02:53.3]}
4. Nxe4 {[%clk 0:03:01.9]} 4... Bf5 {[%clk 0:02:52.6]} 5. Ng3 {[%clk 0:03:01.9]}
5... Bg6 {[%clk 0:02:52.9]} 6. h4 {[%clk 0:03:01.5]} 6... h6 {[%clk 0:02:52.8]}
7. Nf3 {[%clk 0:03:00.5]} 7... Nd7 {[%clk 0:02:52.3]} 8. h5 {[%clk 0:02:59]}
8... Bh7 {[%clk 0:02:51.9]} 9. Bd3 {[%clk 0:02:57]} 9... Bxd3 {[%clk 0:02:50.7]}
10. Qxd3 {[%clk 0:02:57.1]} 10... e6 {[%clk 0:02:50.5]} 11. Bf4 {[%clk
0:02:56.3]} 11... Ngf6 {[%clk 0:02:49.5]} 12. O-O-O {[%clk 0:02:53.9]} 12... Qa5
{[%clk 0:02:42.5]} 13. Kb1 {[%clk 0:02:53.2]} 13... Be7 {[%clk 0:02:39.1]} 14.
Ne4 {[%clk 0:02:45]} 14... Nd5 {[%clk 0:02:38]} 15. Bd2 {[%clk 0:02:43.9]} 15...
Nb4 {[%clk 0:02:32.4]} 16. Bxb4 {[%clk 0:02:22.8]} 16... Bxb4 {[%clk 0:02:26]}
17. g4 {[%clk 0:02:20.9]} 17... Be7 {[%clk 0:02:15.8]} 18. Rhe1 {[%clk
0:02:15.3]} 18... O-O {[%clk 0:02:10.5]} 19. Rg1 {[%clk 0:02:04.4]} 19... b5
{[%clk 0:01:56.4]} 20. g5 {[%clk 0:02:03.4]} 20... hxg5 {[%clk 0:01:53.9]} 21.
Nexg5 {[%clk 0:02:02.8]} 21... Nf6 {[%clk 0:01:51.4]} 22. h6 {[%clk 0:02:02.7]}
22... g6 {[%clk 0:01:48.4]} 23. Nxe6 {[%clk 0:02:02.4]} 23... Kh7 {[%clk
0:01:33.6]} 24. Nfg5+ {[%clk 0:01:54.8]} 24... Kxh6 {[%clk 0:01:32.7]} 25. Rh1+
{[%clk 0:01:54.8]} 25... Nh5 {[%clk 0:01:32.2]} 26. Rxh5+ {[%clk 0:01:53.6]}
26... Kxh5 {[%clk 0:01:20.6]} 27. Qh3# {[%clk 0:01:52.4]} 1-0

[Event "Late-Titled-Tuesday-Blitz-April-23-2024"]
[Site "Chess.com"]
[Date "2024.04.23"]
[Round "2"]
[White "scandalgod"]
[Black "jaramsdal"]
[Result "1-0"]
[WhiteElo "2507"]
[BlackElo "2251"]
[TimeControl "180+1"]
[EndTime "14:14:57 PDT"]
[Termination "scandalgod won by resignation"]

1. d4 {[%clk 0:02:58.1]} 1... Nf6 {[%clk 0:02:58.8]} 2. c4 {[%clk 0:02:58]} 2...
g6 {[%clk 0:02:59.5]} 3. Nc3 {[%clk 0:02:54.3]} 3... d5 {[%clk 0:02:59.8]} 4.
Bg5 {[%clk 0:02:44]} 4... Ne4 {[%clk 0:02:57]} 5. Bh4 {[%clk 0:02:43.5]} 5...
Nxc3 {[%clk 0:02:54.9]} 6. bxc3 {[%clk 0:02:43.1]} 6... dxc4 {[%clk 0:02:55.4]}
7. e3 {[%clk 0:02:43.4]} 7... b5 {[%clk 0:02:44.5]} 8. a4 {[%clk 0:02:39.9]}
8... c6 {[%clk 0:02:44.6]} 9. axb5 {[%clk 0:02:38.2]} 9... cxb5 {[%clk
0:02:45.5]} 10. Qf3 {[%clk 0:02:34.6]} 10... Nc6 {[%clk 0:02:38.9]} 11. Qxc6+
{[%clk 0:02:29.4]} 11... Bd7 {[%clk 0:02:39.8]} 12. Qe4 {[%clk 0:02:26.1]} 12...
a5 {[%clk 0:02:16.9]} 13. Nf3 {[%clk 0:02:09.7]} 13... Bf5 {[%clk 0:02:04.8]}
14. Qe5 {[%clk 0:01:52.6]} 14... b4 {[%clk 0:01:44.7]} 15. Bxc4 {[%clk
0:01:31.9]} 15... f6 {[%clk 0:01:26.1]} 16. Bxf6 {[%clk 0:01:28.8]} 1-0

[Event "Late-Titled-Tuesday-Blitz-April-23-2024"]
[Site "Chess.com"]
[Date "2024.04.23"]
[Round "2"]
[White "Cluke86"]
[Black "KingCyber19"]
[Result "0-1"]
[WhiteElo "2318"]
[BlackElo "2526"]
[TimeControl "180+1"]
[EndTime "14:15:05 PDT"]
[Termination "KingCyber19 won by resignation"]

1. e4 {[%clk 0:03:00.9]} 1... e5 {[%clk 0:02:59.7]} 2. Nf3 {[%clk 0:03:00.5]}
2... Nc6 {[%clk 0:02:59.3]} 3. d4 {[%clk 0:02:59.4]} 3... exd4 {[%clk
0:02:59.5]} 4. Bc4 {[%clk 0:02:59.8]} 4... Nf6 {[%clk 0:02:56.5]} 5. O-O {[%clk
0:02:59.6]} 5... Nxe4 {[%clk 0:02:56]} 6. Re1 {[%clk 0:02:55.7]} 6... d5 {[%clk
0:02:56.4]} 7. Bxd5 {[%clk 0:02:54.5]} 7... Qxd5 {[%clk 0:02:57.3]} 8. Nc3
{[%clk 0:02:54.3]} 8... Qd7 {[%clk 0:02:57.6]} 9. Nxe4 {[%clk 0:02:51.5]} 9...
Be7 {[%clk 0:02:58.2]} 10. Bg5 {[%clk 0:02:50.5]} 10... O-O {[%clk 0:02:58.6]}
11. Bxe7 {[%clk 0:02:38.8]} 11... Qxe7 {[%clk 0:02:59.5]} 12. Nxd4 {[%clk
0:02:37.9]} 12... Bd7 {[%clk 0:02:59.5]} 13. Qd2 {[%clk 0:02:08.8]} 13... Rad8
{[%clk 0:02:46.6]} 14. Rad1 {[%clk 0:02:06.8]} 14... Bg4 {[%clk 0:02:16.8]} 15.
Nxc6 {[%clk 0:01:57.2]} 15... bxc6 {[%clk 0:02:15]} 16. Nc3 {[%clk 0:00:48]}
16... Rxd2 {[%clk 0:02:07.5]} 17. Rxe7 {[%clk 0:00:46.6]} 17... Bxd1 {[%clk
0:02:05.7]} 0-1

[Event "Late-Titled-Tuesday-Blitz-April-23-2024"]
[Site "Chess.com"]
[Date "2024.04.23"]
[Round "2"]
[White "xberli"]
[Black "TenisMaster"]
[Result "0-1"]
[WhiteElo "2631"]
[BlackElo "2961"]
[TimeControl "180+1"]
[EndTime "14:15:07 PDT"]
[Termination "TenisMaster won by resignation"]

1. d4 {[%clk 0:03:00.9]} 1... Nf6 {[%clk 0:02:59.6]} 2. c4 {[%clk 0:03:00.1]}
2... e6 {[%clk 0:02:59.8]} 3. Nc3 {[%clk 0:03:00.5]} 3... Bb4 {[%clk 0:02:59.7]}
4. a3 {[%clk 0:03:01.2]} 4... Bxc3+ {[%clk 0:02:58.3]} 5. bxc3 {[%clk
0:03:02.1]} 5... d6 {[%clk 0:02:57.9]} 6. Bg5 {[%clk 0:02:55]} 6... c5 {[%clk
0:02:49.9]} 7. e3 {[%clk 0:02:50.3]} 7... Qa5 {[%clk 0:02:42.7]} 8. Bd3 {[%clk
0:02:49]} 8... cxd4 {[%clk 0:02:35.6]} 9. Bxf6 {[%clk 0:02:45.9]} 9... gxf6
{[%clk 0:02:29.6]} 10. exd4 {[%clk 0:02:46.1]} 10... Qxc3+ {[%clk 0:02:28.3]}
11. Kf1 {[%clk 0:02:46.1]} 11... Qxd4 {[%clk 0:02:27.5]} 12. Nf3 {[%clk
0:02:40.6]} 12... Qc5 {[%clk 0:02:27.2]} 13. h4 {[%clk 0:02:40.7]} 13... Bd7
{[%clk 0:02:25.5]} 14. h5 {[%clk 0:02:40.9]} 14... Bc6 {[%clk 0:02:24.2]} 15.
Be2 {[%clk 0:02:35.6]} 15... Nd7 {[%clk 0:02:23.1]} 16. Rb1 {[%clk 0:02:33]}
16... Rg8 {[%clk 0:02:20.7]} 17. Qc2 {[%clk 0:02:26.4]} 17... f5 {[%clk
0:02:18.9]} 18. Rh3 {[%clk 0:02:21.5]} 18... Ne5 {[%clk 0:02:15.6]} 19. Ne1
{[%clk 0:02:18.6]} 19... Be4 {[%clk 0:02:13.2]} 20. Bd3 {[%clk 0:02:16.8]} 20...
Nxd3 {[%clk 0:02:03.4]} 21. Nxd3 {[%clk 0:02:15.7]} 21... Bxg2+ {[%clk
0:02:03.2]} 22. Ke2 {[%clk 0:02:11.4]} 22... Qd4 {[%clk 0:02:02]} 23. Rh2 {[%clk
0:01:55.6]} 23... Bf3+ {[%clk 0:01:54.6]} 24. Kd2 {[%clk 0:01:50.9]} 24... Rc8
{[%clk 0:01:53.7]} 25. Rb4 {[%clk 0:01:44.4]} 25... Be4 {[%clk 0:01:44.1]} 26.
Rh3 {[%clk 0:01:43.8]} 26... Rg2 {[%clk 0:01:32.4]} 0-1

[Event "Late-Titled-Tuesday-Blitz-April-23-2024"]
[Site "Chess.com"]
[Date "2024.04.23"]
[Round "2"]
[White "manitodeplomo"]
[Black "DrVelja"]
[Result "1-0"]
[WhiteElo "2655"]
[BlackElo "2974"]
[TimeControl "180+1"]
[EndTime "14:15:08 PDT"]
[Termination "manitodeplomo won on time"]

1. d4 {[%clk 0:02:59.1]} 1... Nf6 {[%clk 0:02:57.9]} 2. c4 {[%clk 0:02:58.7]}
2... e6 {[%clk 0:02:57.9]} 3. Nf3 {[%clk 0:02:57.6]} 3... d5 {[%clk 0:02:54.3]}
4. Nc3 {[%clk 0:02:56.3]} 4... dxc4 {[%clk 0:02:54.7]} 5. e3 {[%clk 0:02:55.8]}
5... a6 {[%clk 0:02:53.1]} 6. Bxc4 {[%clk 0:02:55.8]} 6... b5 {[%clk 0:02:53]}
7. Bb3 {[%clk 0:02:56.4]} 7... Bb7 {[%clk 0:02:52.3]} 8. O-O {[%clk 0:02:57]}
8... c5 {[%clk 0:02:44.2]} 9. Re1 {[%clk 0:02:56.9]} 9... Nbd7 {[%clk
0:02:36.8]} 10. e4 {[%clk 0:02:56.9]} 10... cxd4 {[%clk 0:02:35.9]} 11. Nxd4
{[%clk 0:02:57.8]} 11... Qb8 {[%clk 0:02:34.1]} 12. e5 {[%clk 0:02:57.5]} 12...
Nxe5 {[%clk 0:02:21.2]} 13. Bf4 {[%clk 0:02:51.1]} 13... Bd6 {[%clk 0:02:12.6]}
14. Nxe6 {[%clk 0:02:50.6]} 14... fxe6 {[%clk 0:02:06.3]} 15. Qd4 {[%clk
0:02:48.8]} 15... Nfg4 {[%clk 0:00:10.8]} 16. Bxe6 {[%clk 0:02:38.7]} 1-0

[Event "Late-Titled-Tuesday-Blitz-April-23-2024"]
[Site "Chess.com"]
[Date "2024.04.23"]
[Round "2"]
[White "BabageldiAnnaberdiyev"]
[Black "Gravity_Chess"]
[Result "0-1"]
[WhiteElo "2602"]
[BlackElo "2877"]
[TimeControl "180+1"]
[EndTime "14:15:12 PDT"]
[Termination "Gravity_Chess won by resignation"]

1. e4 {[%clk 0:03:00.9]} 1... c5 {[%clk 0:02:59.3]} 2. Nf3 {[%clk 0:03:00.7]}
2... e6 {[%clk 0:02:59.9]} 3. d3 {[%clk 0:03:01.1]} 3... Nc6 {[%clk 0:02:59.8]}
4. Nbd2 {[%clk 0:03:02]} 4... g6 {[%clk 0:02:59.2]} 5. g3 {[%clk 0:03:02.9]}
5... Bg7 {[%clk 0:02:59.9]} 6. Bg2 {[%clk 0:03:03.5]} 6... Nge7 {[%clk
0:03:00.6]} 7. h4 {[%clk 0:03:04]} 7... O-O {[%clk 0:03:01.3]} 8. h5 {[%clk
0:03:04.3]} 8... d5 {[%clk 0:03:02]} 9. h6 {[%clk 0:03:04.7]} 9... Bh8 {[%clk
0:03:01.9]} 10. O-O {[%clk 0:03:05.3]} 10... d4 {[%clk 0:02:55.4]} 11. Re1
{[%clk 0:02:57.4]} 11... e5 {[%clk 0:02:55.9]} 12. Nf1 {[%clk 0:02:57]} 12...
Bf6 {[%clk 0:02:47.8]} 13. N1h2 {[%clk 0:02:55]} 13... Kh8 {[%clk 0:02:47.5]}
14. a4 {[%clk 0:02:50.3]} 14... Ng8 {[%clk 0:02:46.8]} 15. b3 {[%clk 0:02:37.2]}
15... g5 {[%clk 0:02:45.6]} 16. Bd2 {[%clk 0:02:33.3]} 16... Nxh6 {[%clk
0:02:45.3]} 17. Qc1 {[%clk 0:02:33.4]} 17... Rg8 {[%clk 0:02:45.8]} 18. Rf1
{[%clk 0:02:16]} 18... Ng4 {[%clk 0:02:45.2]} 19. Nxg4 {[%clk 0:02:15.4]} 19...
Bxg4 {[%clk 0:02:46.1]} 20. Nh2 {[%clk 0:02:15.9]} 20... Be6 {[%clk 0:02:46.5]}
21. g4 {[%clk 0:02:05.3]} 21... a6 {[%clk 0:02:37.4]} 22. Bf3 {[%clk 0:02:04.9]}
22... b5 {[%clk 0:02:37.3]} 23. Kg2 {[%clk 0:02:05.5]} 23... c4 {[%clk
0:02:37.3]} 24. axb5 {[%clk 0:02:00.3]} 24... axb5 {[%clk 0:02:37.5]} 25. Rxa8
{[%clk 0:01:58.1]} 25... Qxa8 {[%clk 0:02:38.4]} 26. bxc4 {[%clk 0:01:58.2]}
26... bxc4 {[%clk 0:02:39.3]} 27. Rh1 {[%clk 0:01:58.1]} 27... c3 {[%clk
0:02:25.7]} 28. Be1 {[%clk 0:01:57.4]} 28... Rb8 {[%clk 0:02:26]} 29. Nf1 {[%clk
0:01:56.3]} 29... Qa2 {[%clk 0:02:24.1]} 30. Qd1 {[%clk 0:01:43.4]} 30... Rb1
{[%clk 0:02:24]} 31. Qe2 {[%clk 0:01:43.2]} 31... Nb4 {[%clk 0:02:24.5]} 32. Rh6
{[%clk 0:01:35.8]} 32... Bg7 {[%clk 0:02:19.7]} 33. Rxe6 {[%clk 0:01:35.3]}
33... fxe6 {[%clk 0:02:16.6]} 34. Bxc3 {[%clk 0:01:34.8]} 34... dxc3 {[%clk
0:02:12.5]} 35. Qe3 {[%clk 0:01:34.9]} 35... Nxc2 {[%clk 0:02:04.7]} 36. Qxg5
{[%clk 0:01:34.5]} 36... Rb8 {[%clk 0:02:01.9]} 37. Ng3 {[%clk 0:01:30.6]} 37...
Ne1+ {[%clk 0:02:01.9]} 0-1